[Event "Titled Tuesday Blitz October 5 2021"]
[White "Garv Gaur"]
[Black "Taboas Rodriguez, Daniel"]
[WhiteFideId "45030839"]
[BlackFideId "2208466"]
[WhiteElo "1950"]
[BlackElo "2429"]
[Result "0-1"]
[Round "06"]
[TimeControl "180+1"]
[Date "2021.10.05"]
[WhiteClock "0:01:31"]
[BlackClock "0:02:32"]

1. d4 {[%clk 0:03:00]}  Nf6 {[%clk 0:02:59]} 2. Nf3 {[%clk 0:03:01]}  g6 {[%clk 0:03:00]} 3. c4 {[%clk 0:03:02]}  Bg7 {[%clk 0:03:00]} 4. g3 {[%clk 0:03:02]}  b6 {[%clk 0:03:00]} 5. Bg2 {[%clk 0:03:02]}  Bb7 {[%clk 0:03:01]} 6. O-O {[%clk 0:03:02]}  O-O {[%clk 0:03:01]} 7. Nc3 {[%clk 0:03:02]}  Ne4 {[%clk 0:03:02]} 8. Qc2 {[%clk 0:02:51]}  Nxc3 {[%clk 0:03:02]} 9. Qxc3 {[%clk 0:02:51]}  c5 {[%clk 0:03:03]} 10. Bf4 {[%clk 0:02:39]}  cxd4 {[%clk 0:02:59]} 11. Qd2 {[%clk 0:02:39]}  Nc6 {[%clk 0:02:57]} 12. b4 {[%clk 0:02:38]}  e5 {[%clk 0:02:55]} 13. b5 {[%clk 0:02:33]}  exf4 {[%clk 0:02:52]} 14. bxc6 {[%clk 0:02:33]}  dxc6 {[%clk 0:02:51]} 15. gxf4 {[%clk 0:02:31]}  c5 {[%clk 0:02:51]} 16. Rad1 {[%clk 0:02:27]}  Re8 {[%clk 0:02:50]} 17. e3 {[%clk 0:02:22]}  dxe3 {[%clk 0:02:50]} 18. fxe3 {[%clk 0:02:23]}  Qxd2 {[%clk 0:02:49]} 19. Rxd2 {[%clk 0:02:24]}  Rxe3 {[%clk 0:02:49]} 20. Kf2 {[%clk 0:02:08]}  Re7 {[%clk 0:02:47]} 21. Rfd1 {[%clk 0:02:07]}  Bxf3 {[%clk 0:02:46]} 22. Bxf3 {[%clk 0:02:06]}  Rae8 {[%clk 0:02:45]} 23. Rd8 {[%clk 0:02:05]}  Bd4+ {[%clk 0:02:45]} 24. R1xd4 {[%clk 0:02:04]}  cxd4 {[%clk 0:02:45]} 25. Rxd4 {[%clk 0:02:05]}  Kg7 {[%clk 0:02:45]} 26. Rd5 {[%clk 0:01:55]}  Rc7 {[%clk 0:02:44]} 27. Rd4 {[%clk 0:01:54]}  h5 {[%clk 0:02:42]} 28. Bd5 {[%clk 0:01:53]}  Rce7 {[%clk 0:02:39]} 29. Bf3 {[%clk 0:01:52]}  Re1 {[%clk 0:02:37]} 30. Rd7 {[%clk 0:01:50]}  R8e7 {[%clk 0:02:38]} 31. Rd8 {[%clk 0:01:49]}  Ra1 {[%clk 0:02:37]} 32. Rd2 {[%clk 0:01:47]}  Kf6 {[%clk 0:02:35]} 33. Bd5 {[%clk 0:01:46]}  Kf5 {[%clk 0:02:32]} 34. Kf3 {[%clk 0:01:43]}  Rf1+ {[%clk 0:02:32]} 35. Kg3 {[%clk 0:01:34]}  Rxf4 {[%clk 0:02:33]} 36. Bg2 {[%clk 0:01:31]}  Re3+ {[%clk 0:02:32]} 0-1


[Site "https://www.chess.com"]

[Event "Titled Tuesday Blitz October 5 2021"]
[White "Glavina, Pablo"]
[Black "Koridze, Lile"]
[WhiteFideId "100234"]
[BlackFideId "13612514"]
[WhiteElo "2369"]
[BlackElo "1978"]
[Result "0-1"]
[Round "06"]
[TimeControl "180+1"]
[Date "2021.10.05"]
[WhiteClock "0:00:02"]
[BlackClock "0:00:47"]

1. d4 {[%clk 0:03:00]}  Nf6 {[%clk 0:02:59]} 2. c4 {[%clk 0:03:00]}  e6 {[%clk 0:02:59]} 3. Nc3 {[%clk 0:02:58]}  Bb4 {[%clk 0:02:58]} 4. Qc2 {[%clk 0:02:53]}  O-O {[%clk 0:02:58]} 5. e4 {[%clk 0:02:52]}  d5 {[%clk 0:02:58]} 6. e5 {[%clk 0:02:52]}  Ne4 {[%clk 0:02:57]} 7. Nf3 {[%clk 0:02:51]}  c5 {[%clk 0:02:40]} 8. Bd3 {[%clk 0:02:51]}  Nc6 {[%clk 0:02:37]} 9. O-O {[%clk 0:02:47]}  cxd4 {[%clk 0:02:34]} 10. Nxe4 {[%clk 0:02:44]}  dxe4 {[%clk 0:02:32]} 11. Bxe4 {[%clk 0:02:45]}  h5 {[%clk 0:02:32]} 12. Bf4 {[%clk 0:02:12]}  a5 {[%clk 0:02:12]} 13. Rad1 {[%clk 0:02:11]}  Bc5 {[%clk 0:02:12]} 14. Bxc6 {[%clk 0:01:59]}  bxc6 {[%clk 0:02:05]} 15. Ng5 {[%clk 0:01:58]}  g6 {[%clk 0:02:03]} 16. Ne4 {[%clk 0:01:58]}  Be7 {[%clk 0:02:03]} 17. Bh6 {[%clk 0:01:38]}  Re8 {[%clk 0:02:02]} 18. f4 {[%clk 0:01:38]}  c5 {[%clk 0:01:57]} 19. Bg5 {[%clk 0:01:38]}  Bb7 {[%clk 0:01:52]} 20. Nxc5 {[%clk 0:00:52]}  Bxc5 {[%clk 0:01:40]} 21. Kh1 {[%clk 0:00:31]}  Be7 {[%clk 0:01:35]} 22. Bxe7 {[%clk 0:00:28]}  Qxe7 {[%clk 0:01:35]} 23. Rxd4 {[%clk 0:00:28]}  Red8 {[%clk 0:01:35]} 24. Rfd1 {[%clk 0:00:27]}  Rxd4 {[%clk 0:01:35]} 25. Rxd4 {[%clk 0:00:28]}  Rd8 {[%clk 0:01:35]} 26. Qd2 {[%clk 0:00:28]}  Rxd4 {[%clk 0:01:34]} 27. Qxd4 {[%clk 0:00:29]}  Qc7 {[%clk 0:01:20]} 28. b3 {[%clk 0:00:09]}  Qc6 {[%clk 0:01:18]} 29. Qd2 {[%clk 0:00:10]}  Qe4 {[%clk 0:01:17]} 30. h3 {[%clk 0:00:08]}  Bc6 {[%clk 0:01:14]} 31. Kh2 {[%clk 0:00:08]}  Kh7 {[%clk 0:01:13]} 32. Kg3 {[%clk 0:00:08]}  a4 {[%clk 0:01:09]} 33. Qf2 {[%clk 0:00:03]}  axb3 {[%clk 0:01:06]} 34. axb3 {[%clk 0:00:04]}  Qd3+ {[%clk 0:01:06]} 35. Kh4 {[%clk 0:00:03]}  Qxb3 {[%clk 0:01:03]} 36. Qc5 {[%clk 0:00:03]}  Bxg2 {[%clk 0:00:54]} 37. Kg5 {[%clk 0:00:03]}  Kg7 {[%clk 0:00:49]} 38. Qf2 {[%clk 0:00:02]}  Qxh3 {[%clk 0:00:47]} 0-1


[Site "https://www.chess.com"]

[Event "Titled Tuesday Blitz October 5 2021"]
[White "Hambleton, Aman"]
[Black "Martinovici, Ilia"]
[WhiteFideId "2606577"]
[BlackFideId "13907034"]
[WhiteElo "2552"]
[BlackElo "2303"]
[Result "1-0"]
[Round "06"]
[TimeControl "180+1"]
[Date "2021.10.05"]
[WhiteClock "0:00:03"]
[BlackClock "0:00:01"]

1. d4 {[%clk 0:03:00]}  d5 {[%clk 0:02:59]} 2. Bf4 {[%clk 0:02:59]}  Nf6 {[%clk 0:02:53]} 3. e3 {[%clk 0:02:59]}  c5 {[%clk 0:02:52]} 4. c3 {[%clk 0:02:59]}  Nc6 {[%clk 0:02:51]} 5. Nd2 {[%clk 0:02:57]}  Bf5 {[%clk 0:02:42]} 6. Qb3 {[%clk 0:02:49]}  Na5 {[%clk 0:02:39]} 7. Qa4+ {[%clk 0:02:39]}  Bd7 {[%clk 0:02:38]} 8. Qc2 {[%clk 0:02:40]}  cxd4 {[%clk 0:02:18]} 9. exd4 {[%clk 0:02:41]}  b5 {[%clk 0:02:02]} 10. Ngf3 {[%clk 0:02:36]}  Nc4 {[%clk 0:01:56]} 11. Bd3 {[%clk 0:02:19]}  g6 {[%clk 0:01:54]} 12. O-O {[%clk 0:02:08]}  Bg7 {[%clk 0:01:54]} 13. Ne5 {[%clk 0:02:08]}  O-O {[%clk 0:01:51]} 14. Nb3 {[%clk 0:01:51]}  Be8 {[%clk 0:01:32]} 15. h3 {[%clk 0:01:37]}  Nh5 {[%clk 0:01:31]} 16. Bh2 {[%clk 0:01:37]}  f6 {[%clk 0:01:19]} 17. Ng4 {[%clk 0:01:15]}  e5 {[%clk 0:01:05]} 18. Nc5 {[%clk 0:01:12]}  Bf7 {[%clk 0:00:55]} 19. dxe5 {[%clk 0:00:35]}  fxe5 {[%clk 0:00:51]} 20. b3 {[%clk 0:00:22]}  e4 {[%clk 0:00:40]} 21. Be2 {[%clk 0:00:22]}  Nd6 {[%clk 0:00:33]} 22. Rad1 {[%clk 0:00:16]}  Rc8 {[%clk 0:00:30]} 23. b4 {[%clk 0:00:16]}  Qe7 {[%clk 0:00:20]} 24. Bxd6 {[%clk 0:00:04]}  Qxd6 {[%clk 0:00:21]} 25. Nxe4 {[%clk 0:00:04]}  Qxb4 {[%clk 0:00:16]} 26. Nd2 {[%clk 0:00:01]}  Qxc3 {[%clk 0:00:14]} 27. Qb1 {[%clk 0:00:01]}  Nf4 {[%clk 0:00:13]} 28. Bf3 {[%clk 0:00:02]}  d4 {[%clk 0:00:10]} 29. Ne4 {[%clk 0:00:02]}  Nxh3+ {[%clk 0:00:09]} 30. Kh1 {[%clk 0:00:02]}  Qa3 {[%clk 0:00:09]} 31. Rd3 {[%clk 0:00:02]}  Qxa2 {[%clk 0:00:05]} 32. gxh3 {[%clk 0:00:02]}  Qe6 {[%clk 0:00:03]} 33. Ng3 {[%clk 0:00:02]}  Qf6 {[%clk 0:00:03]} 34. Nxf6+ {[%clk 0:00:02]}  Bxf6 {[%clk 0:00:04]} 35. Qd1 {[%clk 0:00:02]}  Bc4 {[%clk 0:00:05]} 36. Re1 {[%clk 0:00:03]}  Bxd3 {[%clk 0:00:05]} 37. Qxd3 {[%clk 0:00:03]}  Rc3 {[%clk 0:00:04]} 38. Qd1 {[%clk 0:00:03]}  Bh4 {[%clk 0:00:04]} 39. Bd5+ {[%clk 0:00:03]}  Kg7 {[%clk 0:00:03]} 40. Ne4 {[%clk 0:00:03]}  Rxh3+ {[%clk 0:00:02]} 41. Kg2 {[%clk 0:00:04]}  Ra3 {[%clk 0:00:01]} 42. Rh1 {[%clk 0:00:04]}  Bf6 {[%clk 0:00:01]} 43. Qg4 {[%clk 0:00:03]}  d3 {[%clk 0:00:01]} 44. Qd7+ {[%clk 0:00:03]} 1-0


[Site "https://www.chess.com"]

[Event "Titled Tuesday Blitz October 5 2021"]
[White "Indjic, Aleksandar"]
[Black "Nenezic, Marko"]
[WhiteFideId "911925"]
[BlackFideId "912123"]
[WhiteElo "2643"]
[BlackElo "2484"]
[Result "1-0"]
[Round "06"]
[TimeControl "180+1"]
[Date "2021.10.05"]
[WhiteClock "0:01:18"]
[BlackClock "0:00:07"]

1. d4 {[%clk 0:03:00]}  Nf6 {[%clk 0:02:59]} 2. Nc3 {[%clk 0:03:00]}  d5 {[%clk 0:02:59]} 3. Bf4 {[%clk 0:03:00]}  a6 {[%clk 0:02:57]} 4. e3 {[%clk 0:03:00]}  e6 {[%clk 0:02:56]} 5. Nf3 {[%clk 0:03:00]}  Nbd7 {[%clk 0:02:56]} 6. a3 {[%clk 0:02:58]}  c5 {[%clk 0:02:56]} 7. Ne5 {[%clk 0:02:55]}  b5 {[%clk 0:02:51]} 8. Qf3 {[%clk 0:02:52]}  Bb7 {[%clk 0:02:47]} 9. g4 {[%clk 0:02:52]}  b4 {[%clk 0:02:39]} 10. axb4 {[%clk 0:02:50]}  cxb4 {[%clk 0:02:40]} 11. Na4 {[%clk 0:02:49]}  Nxe5 {[%clk 0:02:32]} 12. Bxe5 {[%clk 0:02:47]}  Nd7 {[%clk 0:02:32]} 13. Bg3 {[%clk 0:02:43]}  Be7 {[%clk 0:02:16]} 14. Bd3 {[%clk 0:02:42]}  O-O {[%clk 0:02:14]} 15. O-O {[%clk 0:02:37]}  a5 {[%clk 0:02:12]} 16. b3 {[%clk 0:02:29]}  Ba6 {[%clk 0:02:12]} 17. Qe2 {[%clk 0:02:23]}  Bxd3 {[%clk 0:01:58]} 18. Qxd3 {[%clk 0:02:24]}  Rc8 {[%clk 0:01:35]} 19. Rfc1 {[%clk 0:02:23]}  Nf6 {[%clk 0:01:34]} 20. f3 {[%clk 0:02:21]}  Nd7 {[%clk 0:01:23]} 21. c4 {[%clk 0:02:18]}  bxc3 {[%clk 0:01:19]} 22. Rxc3 {[%clk 0:02:17]}  Bb4 {[%clk 0:01:15]} 23. Rc2 {[%clk 0:02:14]}  Rxc2 {[%clk 0:01:07]} 24. Qxc2 {[%clk 0:02:15]}  h5 {[%clk 0:01:07]} 25. h3 {[%clk 0:02:11]}  hxg4 {[%clk 0:00:32]} 26. hxg4 {[%clk 0:02:12]}  f5 {[%clk 0:00:32]} 27. Qc6 {[%clk 0:01:59]}  Rf6 {[%clk 0:00:32]} 28. g5 {[%clk 0:01:56]}  Rg6 {[%clk 0:00:29]} 29. f4 {[%clk 0:01:56]}  Nf8 {[%clk 0:00:18]} 30. Qc2 {[%clk 0:01:49]}  Nh7 {[%clk 0:00:15]} 31. Kf2 {[%clk 0:01:49]}  Nxg5 {[%clk 0:00:15]} 32. fxg5 {[%clk 0:01:50]}  Qxg5 {[%clk 0:00:16]} 33. Rg1 {[%clk 0:01:49]}  Qh5 {[%clk 0:00:16]} 34. Qe2 {[%clk 0:01:36]}  Qh3 {[%clk 0:00:11]} 35. Qf3 {[%clk 0:01:30]}  f4 {[%clk 0:00:11]} 36. exf4 {[%clk 0:01:24]}  Qf5 {[%clk 0:00:11]} 37. Qe2 {[%clk 0:01:22]}  Rg4 {[%clk 0:00:11]} 38. Nc5 {[%clk 0:01:19]}  Kf7 {[%clk 0:00:09]} 39. Nd3 {[%clk 0:01:18]}  Bc3 {[%clk 0:00:07]} 40. Ne5+ {[%clk 0:01:18]} 1-0


[Site "https://www.chess.com"]

[Event "Titled Tuesday Blitz October 5 2021"]
[White "Jobava, Baadur"]
[Black "Gaehwiler, Gabriel"]
[WhiteFideId "13601520"]
[BlackFideId "1314530"]
[WhiteElo "2731"]
[BlackElo "2320"]
[Result "1-0"]
[Round "06"]
[TimeControl "180+1"]
[Date "2021.10.05"]
[WhiteClock "0:00:57"]
[BlackClock "0:00:34"]

1. e4 {[%clk 0:03:00]}  e5 {[%clk 0:02:58]} 2. Nf3 {[%clk 0:03:00]}  Nf6 {[%clk 0:02:58]} 3. d4 {[%clk 0:02:58]}  Nxe4 {[%clk 0:02:55]} 4. dxe5 {[%clk 0:02:59]}  d5 {[%clk 0:02:55]} 5. Nbd2 {[%clk 0:02:59]}  Nxd2 {[%clk 0:02:40]} 6. Qxd2 {[%clk 0:03:00]}  Be7 {[%clk 0:02:40]} 7. Qf4 {[%clk 0:02:59]}  Be6 {[%clk 0:02:38]} 8. Qg3 {[%clk 0:02:59]}  Rg8 {[%clk 0:02:18]} 9. Bd3 {[%clk 0:02:57]}  g6 {[%clk 0:01:52]} 10. Nd4 {[%clk 0:02:53]}  Nd7 {[%clk 0:01:50]} 11. O-O {[%clk 0:02:48]}  Nc5 {[%clk 0:01:48]} 12. f4 {[%clk 0:02:36]}  Bh4 {[%clk 0:01:40]} 13. Qf3 {[%clk 0:02:33]}  Nxd3 {[%clk 0:01:38]} 14. cxd3 {[%clk 0:02:34]}  Qd7 {[%clk 0:01:38]} 15. Bd2 {[%clk 0:02:25]}  O-O-O {[%clk 0:01:31]} 16. Rac1 {[%clk 0:02:23]}  Qa4 {[%clk 0:01:29]} 17. Nxe6 {[%clk 0:02:20]}  fxe6 {[%clk 0:01:30]} 18. Qg4 {[%clk 0:02:20]}  g5 {[%clk 0:01:12]} 19. Qxe6+ {[%clk 0:02:15]}  Kb8 {[%clk 0:01:12]} 20. f5 {[%clk 0:02:04]}  Qd4+ {[%clk 0:01:07]} 21. Kh1 {[%clk 0:02:04]}  Qxd3 {[%clk 0:00:57]} 22. Rfd1 {[%clk 0:01:29]}  Qe4 {[%clk 0:00:48]} 23. Bc3 {[%clk 0:01:01]}  d4 {[%clk 0:00:45]} 24. Rxd4 {[%clk 0:00:59]}  Qe3 {[%clk 0:00:37]} 25. Rcd1 {[%clk 0:00:58]}  Rc8 {[%clk 0:00:34]} 26. Qxg8 {[%clk 0:00:57]} 1-0


[Site "https://www.chess.com"]

[Event "Titled Tuesday Blitz October 5 2021"]
[White "Kabanov, Nikolai"]
[Black "Aggelis, Nikolaos"]
[WhiteFideId "4127820"]
[BlackFideId "4213220"]
[WhiteElo "2303"]
[BlackElo "2154"]
[Result "0-1"]
[Round "06"]
[TimeControl "180+1"]
[Date "2021.10.05"]
[WhiteClock "0:00:07"]
[BlackClock "0:01:02"]

1. e4 {[%clk 0:03:00]}  e5 {[%clk 0:02:59]} 2. Nf3 {[%clk 0:03:00]}  Nc6 {[%clk 0:03:00]} 3. Bc4 {[%clk 0:03:00]}  Bc5 {[%clk 0:03:00]} 4. c3 {[%clk 0:03:00]}  Nf6 {[%clk 0:02:59]} 5. d4 {[%clk 0:03:01]}  exd4 {[%clk 0:02:59]} 6. cxd4 {[%clk 0:03:02]}  Bb4+ {[%clk 0:02:59]} 7. Bd2 {[%clk 0:03:02]}  Bxd2+ {[%clk 0:02:59]} 8. Nbxd2 {[%clk 0:03:03]}  d5 {[%clk 0:02:59]} 9. exd5 {[%clk 0:03:04]}  Nxd5 {[%clk 0:02:59]} 10. Qb3 {[%clk 0:03:05]}  Na5 {[%clk 0:02:58]} 11. Qa4+ {[%clk 0:03:05]}  Nc6 {[%clk 0:02:58]} 12. Qb3 {[%clk 0:03:03]}  Na5 {[%clk 0:02:56]} 13. Qa4+ {[%clk 0:03:03]}  Nc6 {[%clk 0:02:56]} 14. O-O {[%clk 0:03:02]}  O-O {[%clk 0:02:55]} 15. Rfe1 {[%clk 0:03:00]}  Nb6 {[%clk 0:02:53]} 16. Qb3 {[%clk 0:02:50]}  Na5 {[%clk 0:02:53]} 17. Qc3 {[%clk 0:02:49]}  Naxc4 {[%clk 0:02:52]} 18. Nxc4 {[%clk 0:02:50]}  Nxc4 {[%clk 0:02:52]} 19. Qxc4 {[%clk 0:02:51]}  Be6 {[%clk 0:02:52]} 20. Qb4 {[%clk 0:02:48]}  Bd5 {[%clk 0:02:51]} 21. Re3 {[%clk 0:02:43]}  a5 {[%clk 0:02:48]} 22. Qc5 {[%clk 0:02:30]}  b6 {[%clk 0:02:46]} 23. Qc3 {[%clk 0:02:26]}  Qd6 {[%clk 0:02:40]} 24. Rae1 {[%clk 0:02:25]}  Rac8 {[%clk 0:02:35]} 25. Ne5 {[%clk 0:02:17]}  c5 {[%clk 0:02:30]} 26. dxc5 {[%clk 0:02:10]}  Rxc5 {[%clk 0:02:27]} 27. Qd4 {[%clk 0:02:09]}  Qf6 {[%clk 0:02:21]} 28. Qd2 {[%clk 0:01:50]}  Bxa2 {[%clk 0:02:18]} 29. Nd7 {[%clk 0:01:46]}  Qd8 {[%clk 0:02:07]} 30. Qd6 {[%clk 0:01:38]}  Be6 {[%clk 0:01:53]} 31. Rxe6 {[%clk 0:01:04]}  fxe6 {[%clk 0:01:40]} 32. Qxe6+ {[%clk 0:01:05]}  Rf7 {[%clk 0:01:39]} 33. Nxc5 {[%clk 0:00:59]}  bxc5 {[%clk 0:01:38]} 34. h3 {[%clk 0:00:51]}  Qd4 {[%clk 0:01:38]} 35. Re2 {[%clk 0:00:46]}  g6 {[%clk 0:01:37]} 36. Qe8+ {[%clk 0:00:36]}  Kg7 {[%clk 0:01:36]} 37. Qe5+ {[%clk 0:00:36]}  Qxe5 {[%clk 0:01:34]} 38. Rxe5 {[%clk 0:00:37]}  Rc7 {[%clk 0:01:33]} 39. b3 {[%clk 0:00:36]}  Kf6 {[%clk 0:01:31]} 40. Re4 {[%clk 0:00:36]}  Rb7 {[%clk 0:01:30]} 41. Rc4 {[%clk 0:00:30]}  Rxb3 {[%clk 0:01:28]} 42. Rxc5 {[%clk 0:00:30]}  a4 {[%clk 0:01:21]} 43. Ra5 {[%clk 0:00:30]}  a3 {[%clk 0:01:21]} 44. g3 {[%clk 0:00:26]}  h5 {[%clk 0:01:20]} 45. Kg2 {[%clk 0:00:26]}  Ke6 {[%clk 0:01:21]} 46. h4 {[%clk 0:00:24]}  Kd7 {[%clk 0:01:20]} 47. Ra6 {[%clk 0:00:23]}  Kc7 {[%clk 0:01:18]} 48. Rxg6 {[%clk 0:00:16]}  Kb7 {[%clk 0:01:17]} 49. Rg7+ {[%clk 0:00:13]}  Kb6 {[%clk 0:01:18]} 50. Rg8 {[%clk 0:00:11]}  Ka7 {[%clk 0:01:16]} 51. Rg5 {[%clk 0:00:11]}  Ka6 {[%clk 0:01:15]} 52. Rg6+ {[%clk 0:00:11]}  Rb6 {[%clk 0:01:15]} 53. Rg8 {[%clk 0:00:11]}  Ka7 {[%clk 0:01:09]} 54. Rd8 {[%clk 0:00:06]}  a2 {[%clk 0:01:07]} 55. Rd1 {[%clk 0:00:06]}  Rb1 {[%clk 0:01:07]} 56. Rd7+ {[%clk 0:00:07]}  Kb6 {[%clk 0:01:06]} 57. Rd6+ {[%clk 0:00:07]}  Kc5 {[%clk 0:01:06]} 58. Ra6 {[%clk 0:00:07]}  a1=Q {[%clk 0:01:07]} 59. Rxa1 {[%clk 0:00:08]}  Rxa1 {[%clk 0:01:07]} 60. Kf3 {[%clk 0:00:06]}  Ra4 {[%clk 0:01:03]} 61. Ke3 {[%clk 0:00:05]}  Kd5 {[%clk 0:01:03]} 62. f3 {[%clk 0:00:06]}  Ke5 {[%clk 0:01:03]} 63. g4 {[%clk 0:00:07]}  Ra3+ {[%clk 0:01:03]} 64. Kf2 {[%clk 0:00:07]}  Kf4 {[%clk 0:01:04]} 65. gxh5 {[%clk 0:00:06]}  Rxf3+ {[%clk 0:01:02]} 66. Kg2 {[%clk 0:00:07]}  Ra3 {[%clk 0:01:02]} 0-1


[Site "https://www.chess.com"]

[Event "Titled Tuesday Blitz October 5 2021"]
[White "Karacsonyi, Gellert"]
[Black "Zhigalko, Sergei"]
[WhiteFideId "764620"]
[BlackFideId "13502956"]
[WhiteElo "2215"]
[BlackElo "2662"]
[Result "1/2-1/2"]
[Round "06"]
[TimeControl "180+1"]
[Date "2021.10.05"]
[WhiteClock "0:00:43"]
[BlackClock "0:00:12"]

1. e4 {[%clk 0:03:00]}  c5 {[%clk 0:02:58]} 2. Nf3 {[%clk 0:02:59]}  Nc6 {[%clk 0:02:58]} 3. d4 {[%clk 0:02:59]}  cxd4 {[%clk 0:02:58]} 4. Nxd4 {[%clk 0:03:00]}  Nf6 {[%clk 0:02:57]} 5. Nc3 {[%clk 0:03:00]}  e5 {[%clk 0:02:57]} 6. Nf5 {[%clk 0:03:00]}  d5 {[%clk 0:02:57]} 7. exd5 {[%clk 0:03:01]}  Bxf5 {[%clk 0:02:57]} 8. dxc6 {[%clk 0:03:01]}  bxc6 {[%clk 0:02:58]} 9. Qf3 {[%clk 0:03:00]}  Qd7 {[%clk 0:02:58]} 10. Bg5 {[%clk 0:03:00]}  e4 {[%clk 0:02:52]} 11. Qf4 {[%clk 0:03:00]}  Bd6 {[%clk 0:02:45]} 12. Qd2 {[%clk 0:02:59]}  Nd5 {[%clk 0:02:36]} 13. Qxd5 {[%clk 0:02:22]}  cxd5 {[%clk 0:02:29]} 14. Bb5 {[%clk 0:02:23]}  Bb4 {[%clk 0:01:44]} 15. O-O-O {[%clk 0:02:15]}  Bxc3 {[%clk 0:01:32]} 16. Bxd7+ {[%clk 0:02:15]}  Kxd7 {[%clk 0:01:31]} 17. bxc3 {[%clk 0:02:16]}  Ke6 {[%clk 0:01:26]} 18. Rhe1 {[%clk 0:02:13]}  Rhc8 {[%clk 0:01:23]} 19. Kd2 {[%clk 0:02:11]}  Rc4 {[%clk 0:00:56]} 20. Be3 {[%clk 0:02:07]}  Ra4 {[%clk 0:00:56]} 21. Ra1 {[%clk 0:02:02]}  Rb8 {[%clk 0:00:54]} 22. Kc1 {[%clk 0:01:29]}  Kd7 {[%clk 0:00:38]} 23. Rb1 {[%clk 0:01:27]}  Rc8 {[%clk 0:00:27]} 24. Rb7+ {[%clk 0:01:26]}  Rc7 {[%clk 0:00:24]} 25. Rxc7+ {[%clk 0:01:25]}  Kxc7 {[%clk 0:00:25]} 26. Kb2 {[%clk 0:01:25]}  Bd7 {[%clk 0:00:24]} 27. Bd4 {[%clk 0:01:24]}  g6 {[%clk 0:00:21]} 28. Be5+ {[%clk 0:01:19]}  Kb7 {[%clk 0:00:20]} 29. Rd1 {[%clk 0:01:16]}  Bb5 {[%clk 0:00:11]} 30. Rxd5 {[%clk 0:01:13]}  Rxa2+ {[%clk 0:00:10]} 31. Kxa2 {[%clk 0:01:12]}  Bc4+ {[%clk 0:00:11]} 32. Ka3 {[%clk 0:01:11]}  Bxd5 {[%clk 0:00:12]} 33. Kb4 {[%clk 0:01:11]}  e3 {[%clk 0:00:11]} 34. fxe3 {[%clk 0:01:10]}  Bxg2 {[%clk 0:00:12]} 35. c4 {[%clk 0:01:08]}  Kc6 {[%clk 0:00:10]} 36. c5 {[%clk 0:01:08]}  a6 {[%clk 0:00:09]} 37. Kc4 {[%clk 0:01:03]}  Bf1+ {[%clk 0:00:09]} 38. Kb4 {[%clk 0:01:03]}  Kd5 {[%clk 0:00:09]} 39. Bd6 {[%clk 0:01:02]}  f5 {[%clk 0:00:09]} 40. Bf4 {[%clk 0:01:01]}  Kc6 {[%clk 0:00:05]} 41. h4 {[%clk 0:00:58]}  Kd5 {[%clk 0:00:05]} 42. Bg5 {[%clk 0:00:58]}  Be2 {[%clk 0:00:04]} 43. Bf4 {[%clk 0:00:58]}  Bb5 {[%clk 0:00:04]} 44. Bg5 {[%clk 0:00:56]}  Be2 {[%clk 0:00:04]} 45. Bf4 {[%clk 0:00:56]}  Kc6 {[%clk 0:00:04]} 46. Bg5 {[%clk 0:00:56]}  Bd1 {[%clk 0:00:05]} 47. c3 {[%clk 0:00:55]}  Be2 {[%clk 0:00:05]} 48. Bf4 {[%clk 0:00:55]}  Bf1 {[%clk 0:00:06]} 49. Bg5 {[%clk 0:00:55]}  Be2 {[%clk 0:00:06]} 50. Bf4 {[%clk 0:00:55]}  Bf1 {[%clk 0:00:06]} 51. Bg5 {[%clk 0:00:56]}  a5+ {[%clk 0:00:07]} 52. Kxa5 {[%clk 0:00:53]}  Kxc5 {[%clk 0:00:08]} 53. Bf4 {[%clk 0:00:51]}  Kc4 {[%clk 0:00:08]} 54. Kb6 {[%clk 0:00:47]}  Kxc3 {[%clk 0:00:08]} 55. Kc5 {[%clk 0:00:48]}  Kd3 {[%clk 0:00:08]} 56. Kd5 {[%clk 0:00:48]}  Ke2 {[%clk 0:00:07]} 57. Ke5 {[%clk 0:00:48]}  Kf3 {[%clk 0:00:07]} 58. Kf6 {[%clk 0:00:48]}  Kg4 {[%clk 0:00:06]} 59. Bg5 {[%clk 0:00:43]}  Kh5 {[%clk 0:00:06]} 60. Kg7 {[%clk 0:00:42]}  h6 {[%clk 0:00:07]} 61. Bxh6 {[%clk 0:00:41]}  Kxh4 {[%clk 0:00:07]} 62. Kxg6 {[%clk 0:00:41]}  Bd3 {[%clk 0:00:08]} 63. Bf4 {[%clk 0:00:40]}  Kg4 {[%clk 0:00:08]} 64. Kf6 {[%clk 0:00:41]}  Be4 {[%clk 0:00:09]} 65. Ke5 {[%clk 0:00:41]}  Bf3 {[%clk 0:00:10]} 66. Kf6 {[%clk 0:00:42]}  Be4 {[%clk 0:00:11]} 67. Ke5 {[%clk 0:00:42]}  Bf3 {[%clk 0:00:12]} 68. Kf6 {[%clk 0:00:43]}  Be4 {[%clk 0:00:12]} 1/2-1/2


[Site "https://www.chess.com"]